fUSD/lending_fUSD_20250103
["ID","MTS","AMOUNT","RATE_DAILY","PERIOD"]
[347530930,1735905041498,-1217.73,8.985e-05,2]
[347530931,1735905041507,-500.0,8.985e-05,2]
[347530932,1735905041516,-1944.42,8.985e-05,2]
[347530933,1735905041525,-1797.6,8.985e-05,2]
[347530934,1735905041535,-500.0,8.985e-05,2]
[347530935,1735905041544,-500.0,8.985e-05,2]
[347530936,1735905041553,-500.0,8.985e-05,2]
[347530937,1735905041563,-500.0,8.985e-05,2]
[347530938,1735905041572,-500.0,8.985e-05,2]
[347530939,1735905041581,-500.0,8.985e-05,2]
[347530941,1735905041591,-176.67509475,8.986e-05,2]
[347530942,1735905041600,-500.0,8.986e-05,2]
[347530943,1735905041609,-500.0,8.986e-05,2]
[347530944,1735905041619,-500.0,8.986e-05,2]
[347530945,1735905041629,-500.0,8.986e-05,2]
[347530946,1735905041638,-500.0,8.986e-05,2]
[347530947,1735905041648,-500.0,8.986e-05,2]
[347530948,1735905041657,-300.0,8.986e-05,2]
[347530949,1735905041667,-500.0,8.986e-05,2]
[347530950,1735905041676,-500.0,8.986e-05,2]
[347530951,1735905041686,-500.0,8.986e-05,2]
[347530952,1735905041696,-500.0,8.986e-05,2]
[347530953,1735905041705,-500.0,8.986e-05,2]
[347530954,1735905041714,-500.0,8.986e-05,2]
[347530955,1735905041724,-500.0,8.986e-05,2]
[347530956,1735905041736,-500.0,8.986e-05,2]
[347530957,1735905041745,-500.0,8.986e-05,2]
[347530958,1735905041755,-500.0,8.986e-05,2]
[347530959,1735905041764,-500.0,8.986e-05,2]
[347530960,1735905041774,-1191.78,8.986e-05,2]
[347530961,1735905041783,-500.0,8.986e-05,2]
[347530962,1735905041792,-500.0,8.986e-05,2]
[347530963,1735905041802,-500.0,8.986e-05,2]
[347530964,1735905041812,-500.0,8.986e-05,2]
[347530965,1735905041821,-500.0,8.986e-05,2]
[347530966,1735905041831,-500.0,8.986e-05,2]
[347530967,1735905041841,-500.0,8.986e-05,2]
[347530968,1735905041851,-500.0,8.986e-05,2]
[347530969,1735905041861,-486.70291059,8.986e-05,2]
[347530970,1735905041871,-500.0,8.986e-05,2]
[347530971,1735905041880,-500.0,8.986e-05,2]
[347530972,1735905041890,-500.0,8.986e-05,2]
[347530973,1735905041899,-500.0,8.986e-05,2]
[347530974,1735905041909,-500.0,8.986e-05,2]
[347530975,1735905041919,-500.0,8.986e-05,2]
[347530976,1735905041929,-591.12864334,8.986e-05,2]
[347530977,1735905041938,-500.0,8.986e-05,2]
[347530978,1735905041948,-687.48,8.986e-05,2]
[347530979,1735905041958,-500.0,8.986e-05,2]
[347530980,1735905041968,-558.11,8.986e-05,2]
[347530981,1735905041979,-500.0,8.986e-05,2]
[347530982,1735905041989,-500.0,8.986e-05,2]
[347530983,1735905041999,-500.0,8.986e-05,2]
[347530984,1735905042008,-500.0,8.986e-05,2]
[347530985,1735905042018,-500.0,8.986e-05,2]
[347530986,1735905042028,-500.0,8.986e-05,2]
[347530987,1735905042038,-500.0,8.986e-05,2]
[347530988,1735905042047,-500.0,8.986e-05,2]
[347530989,1735905042056,-500.0,8.986e-05,2]
[347530990,1735905042066,-500.0,8.986e-05,2]
[347530991,1735905042075,-1230.45,8.986e-05,2]
[347530992,1735905042084,-500.0,8.986e-05,2]
[347530993,1735905042094,-500.0,8.986e-05,2]
[347530994,1735905042103,-500.0,8.986e-05,2]
[347530995,1735905042112,-500.0,8.986e-05,2]
[347530996,1735905042122,-500.0,8.986e-05,2]
[347530997,1735905042131,-500.0,8.986e-05,2]
[347530998,1735905042140,-500.0,8.986e-05,2]
[347530999,1735905042149,-500.0,8.986e-05,2]
[347531000,1735905042158,-500.0,8.986e-05,2]
[347531001,1735905042168,-1029.03,8.986e-05,2]
[347531002,1735905042177,-500.0,8.986e-05,2]
[347531003,1735905042186,-500.0,8.986e-05,2]
[347531004,1735905042195,-500.0,8.986e-05,2]
[347531005,1735905042205,-424.67010018,8.986e-05,2]
[347531006,1735905042214,-500.0,8.986e-05,2]
[347531007,1735905042223,-500.0,8.986e-05,2]
[347531008,1735905042235,-500.0,8.986e-05,2]
[347531009,1735905042245,-500.0,8.986e-05,2]
[347531010,1735905042255,-500.0,8.986e-05,2]
[347531011,1735905042264,-513.1,8.986e-05,2]
[347531012,1735905042274,-500.0,8.986e-05,2]
[347531013,1735905042283,-633.22,8.986e-05,2]
[347531014,1735905042293,-500.0,8.986e-05,2]
[347531015,1735905042303,-500.0,8.986e-05,2]
[347531016,1735905042313,-500.0,8.986e-05,2]
[347531017,1735905042323,-500.0,8.986e-05,2]
[347531018,1735905042334,-722.34,8.986e-05,2]
[347531019,1735905042343,-500.0,8.986e-05,2]
[347531020,1735905042353,-1101.9,8.986e-05,2]
[347531021,1735905042362,-167.28780933,8.986e-05,2]
[347531022,1735905042371,-500.0,8.986e-05,2]
[347531023,1735905042380,-647.58108208,8.986e-05,2]
[347531024,1735905042389,-587.25,8.986e-05,2]
[347531025,1735905042398,-500.0,8.986e-05,2]
[347531026,1735905042409,-500.0,8.986e-05,2]
[347531027,1735905042419,-1875.98,8.986e-05,2]
[347531028,1735905042429,-588.35,8.986e-05,2]
[347531029,1735905042438,-500.0,8.986e-05,2]
[347531030,1735905042447,-500.0,8.986e-05,2]
[347531031,1735905042456,-500.0,8.986e-05,2]
[347531032,1735905042466,-500.0,8.986e-05,2]
[347531033,1735905042475,-500.0,8.986e-05,2]
[347531034,1735905042486,-500.0,8.986e-05,2]
[347531036,1735905042496,-500.0,8.986e-05,2]
[347531038,1735905042505,-1339.24,8.986e-05,2]
[347531040,1735905042514,-500.0,8.986e-05,2]
[347531042,1735905042524,-500.0,8.986e-05,2]
[347531043,1735905042534,-934.77,8.986e-05,2]
[347531044,1735905042544,-500.0,8.986e-05,2]
[347531045,1735905042554,-1088.66,8.986e-05,2]
[347531046,1735905042564,-832.16,8.986e-05,2]
[347531047,1735905042573,-500.0,8.986e-05,2]
[347531048,1735905042583,-500.0,8.986e-05,2]
[347531049,1735905042593,-500.0,8.986e-05,2]
[347531051,1735905042603,-1061.28,8.986e-05,2]
[347531052,1735905042612,-656.83,8.986e-05,2]
[347531053,1735905042621,-500.0,8.986e-05,2]
[347531054,1735905042631,-500.0,8.986e-05,2]
[347531055,1735905042641,-1137.49,8.986e-05,2]
[347531056,1735905042650,-500.0,8.986e-05,2]
[347531057,1735905042659,-500.0,8.986e-05,2]
[347531058,1735905042668,-500.0,8.986e-05,2]
[347531059,1735905042678,-500.0,8.986e-05,2]
[347531060,1735905042687,-980.52,8.986e-05,2]
[347531061,1735905042696,-500.0,8.986e-05,2]
[347531062,1735905042705,-500.0,8.986e-05,2]
[347531063,1735905042714,-644.17,8.986e-05,2]
[347531064,1735905042724,-500.0,8.986e-05,2]
[347531065,1735905042734,-500.0,8.986e-05,2]
[347531066,1735905042743,-500.0,8.986e-05,2]
[347531067,1735905042753,-1870.3,8.986e-05,2]
[347531068,1735905042763,-500.0,8.986e-05,2]
[347531069,1735905042772,-500.0,8.986e-05,2]
[347531070,1735905042781,-775.87,8.986e-05,2]
[347531071,1735905042790,-500.0,8.986e-05,2]
[347531072,1735905042799,-500.0,8.986e-05,2]
[347531073,1735905042809,-500.0,8.986e-05,2]
[347531074,1735905042819,-840.61,8.986e-05,2]
[347531075,1735905042828,-500.0,8.986e-05,2]
[347531076,1735905042837,-500.0,8.986e-05,2]
[347531077,1735905042847,-1333.63,8.986e-05,2]
[347531078,1735905042857,-500.0,8.986e-05,2]
[347531079,1735905042867,-500.0,8.986e-05,2]
[347531080,1735905042877,-1710.1,8.986e-05,2]
[347531081,1735905042886,-233.63500452,8.986e-05,2]
[347531082,1735905042896,-500.0,8.986e-05,2]
[347531083,1735905042905,-500.0,8.986e-05,2]
[347531084,1735905042915,-789.29,8.986e-05,2]
[347531085,1735905042925,-500.0,8.986e-05,2]
[347531086,1735905042934,-500.0,8.986e-05,2]
[347531087,1735905042944,-1577.96,8.986e-05,2]
[347531088,1735905042953,-500.0,8.986e-05,2]
[347531089,1735905042962,-792.2,8.986e-05,2]
[347531090,1735905042971,-500.0,8.986e-05,2]
[347531091,1735905042980,-1054.64,8.986e-05,2]
[347531092,1735905042989,-500.0,8.986e-05,2]
[347531093,1735905042999,-500.0,8.986e-05,2]
[347531094,1735905043008,-500.0,8.986e-05,2]
[347531095,1735905043017,-500.0,8.986e-05,2]
[347531096,1735905043026,-500.0,8.986e-05,2]
[347531097,1735905043035,-1497.47,8.986e-05,2]
[347531098,1735905043044,-500.0,8.986e-05,2]
[347531099,1735905043053,-500.0,8.986e-05,2]
[347531100,1735905043063,-500.0,8.986e-05,2]
[347531101,1735905043073,-500.0,8.986e-05,2]
[347531102,1735905043082,-829.38,8.986e-05,2]
[347531103,1735905043091,-500.0,8.986e-05,2]
[347531104,1735905043101,-500.0,8.986e-05,2]
[347531105,1735905043111,-500.0,8.986e-05,2]
[347531106,1735905043120,-500.0,8.986e-05,2]
[347531107,1735905043129,-987.75,8.986e-05,2]
[347531108,1735905043138,-529.57,8.986e-05,2]
[347531109,1735905043148,-500.0,8.986e-05,2]
[347531110,1735905043158,-500.0,8.986e-05,2]
[347531111,1735905043167,-500.0,8.986e-05,2]
[347531112,1735905043177,-1111.14,8.986e-05,2]
[347531113,1735905043186,-500.0,8.986e-05,2]
[347531114,1735905043196,-833.34,8.986e-05,2]
[347531115,1735905043205,-985.13,8.986e-05,2]
[347531116,1735905043215,-1274.61,8.986e-05,2]
[347531117,1735905043224,-766.68,8.986e-05,2]
[347531118,1735905043235,-1142.18,8.986e-05,2]
[347531119,1735905043245,-500.0,8.986e-05,2]
[347531120,1735905043257,-681.35,8.986e-05,2]
[347531121,1735905043267,-500.0,8.986e-05,2]
[347531122,1735905043276,-1062.57,8.986e-05,2]
[347531123,1735905043286,-500.0,8.986e-05,2]
[347531124,1735905043297,-3523.17,8.986e-05,2]
[347531125,1735905043308,-500.0,8.986e-05,2]
[347531126,1735905043317,-500.0,8.986e-05,2]
[347531127,1735905043328,-831.69,8.986e-05,2]
[347531128,1735905043339,-1740.72,8.986e-05,2]
[347531129,1735905043349,-990.89,8.986e-05,2]
[347531130,1735905043359,-716.2,8.986e-05,2]
[347531131,1735905043368,-500.0,8.986e-05,2]
[347531132,1735905043378,-500.0,8.986e-05,2]
[347531133,1735905043387,-1262.65,8.986e-05,2]
[347531134,1735905043396,-500.0,8.986e-05,2]
[347531135,1735905043406,-519.04,8.986e-05,2]
[347531136,1735905043416,-500.0,8.986e-05,2]
[347531137,1735905043425,-1231.96,8.986e-05,2]
[347531138,1735905043435,-587.5,8.986e-05,2]
[347531139,1735905043445,-1734.76,8.986e-05,2]
[347531140,1735905043454,-500.0,8.986e-05,2]
[347531141,1735905043464,-2349.32,8.986e-05,2]
[347531142,1735905043474,-941.43,8.986e-05,2]
[347531144,1735905043484,-500.0,8.986e-05,2]
[347531145,1735905043494,-552.81,8.986e-05,2]
[347531146,1735905043503,-500.0,8.986e-05,2]
[347531147,1735905043513,-860.17,8.986e-05,2]
[347531148,1735905043522,-500.0,8.986e-05,2]
[347531149,1735905043531,-500.0,8.986e-05,2]
[347531150,1735905043541,-500.0,8.986e-05,2]
[347531151,1735905043551,-500.0,8.986e-05,2]
[347531152,1735905043560,-1107.49,8.986e-05,2]
[347531153,1735905043570,-693.65,8.986e-05,2]
[347531154,1735905043579,-500.0,8.986e-05,2]
[347531155,1735905043589,-619.56,8.986e-05,2]
[347531156,1735905043599,-913.88,8.986e-05,2]
[347531157,1735905043608,-500.0,8.986e-05,2]
[347531158,1735905043618,-2450.4,8.986e-05,2]
[347531159,1735905043628,-1659.07,8.986e-05,2]
[347531160,1735905043638,-500.0,8.986e-05,2]
[347531161,1735905043647,-500.0,8.986e-05,2]
[347531162,1735905043657,-1018.08,8.986e-05,2]
[347531163,1735905043666,-1004.12,8.986e-05,2]
[347531164,1735905043676,-500.0,8.986e-05,2]
[347531165,1735905043686,-500.0,8.986e-05,2]
[347531166,1735905043695,-552.62,8.986e-05,2]
[347531167,1735905043704,-569.9,8.986e-05,2]
[347531168,1735905043714,-500.0,8.986e-05,2]
[347531169,1735905043723,-500.0,8.986e-05,2]
[347531170,1735905043734,-928.8,8.986e-05,2]
[347531171,1735905043745,-500.0,8.986e-05,2]
[347531172,1735905043754,-500.0,8.986e-05,2]
[347531173,1735905043764,-500.0,8.986e-05,2]
[347531174,1735905043773,-500.0,8.986e-05,2]
[347531175,1735905043783,-1224.6,8.986e-05,2]
[347531176,1735905043792,-2134.23,8.986e-05,2]
[347531177,1735905043801,-500.0,8.986e-05,2]
[347531178,1735905043811,-956.63,8.986e-05,2]
[347531179,1735905043820,-500.0,8.986e-05,2]
[347531180,1735905043829,-500.0,8.986e-05,2]
[347531181,1735905043839,-974.42,8.986e-05,2]
[347531182,1735905043848,-500.0,8.986e-05,2]
[347531183,1735905043857,-1772.47,8.986e-05,2]
[347531184,1735905043866,-621.71,8.986e-05,2]
[347531185,1735905043876,-500.0,8.986e-05,2]
[347531186,1735905043885,-683.75,8.986e-05,2]
[347531187,1735905043895,-638.46,8.986e-05,2]
[347531188,1735905043905,-500.0,8.986e-05,2]
[347531189,1735905043915,-1085.2,8.986e-05,2]
[347531190,1735905043927,-1719.1,8.986e-05,2]
[347531191,1735905043936,-1059.67,8.986e-05,2]
[347531192,1735905043945,-72.07739586,8.986e-05,2]
[347531193,1735905043967,-911.51260414,8.986e-05,2]
[347531194,1735905043976,-500.0,8.986e-05,2]
[347531195,1735905043988,-455.36739586,8.986e-05,2]
[347531196,1735905044088,-44.63260414,8.986e-05,2]
[347531197,1735905044098,-500.0,8.986e-05,2]
[347531198,1735905044107,-1242.31,8.986e-05,2]
[347531199,1735905044117,-578.44,8.986e-05,2]
[347531200,1735905044126,-1069.9,8.986e-05,2]
[347531201,1735905044135,-2360.45,8.986e-05,2]
[347531202,1735905044145,-500.0,8.986e-05,2]
[347531203,1735905044155,-1524.62,8.986e-05,2]
[347531204,1735905044165,-809.15,8.986e-05,2]
[347531205,1735905044175,-541.29,8.986e-05,2]
[347531206,1735905044184,-1192.98,8.986e-05,2]
[347531207,1735905044194,-500.0,8.986e-05,2]
[347531208,1735905044203,-500.0,8.986e-05,2]
[347531209,1735905044212,-500.0,8.986e-05,2]
[347531210,1735905044221,-500.0,8.986e-05,2]
[347531211,1735905044231,-669.28,8.986e-05,2]
[347531212,1735905044240,-1030.19,8.986e-05,2]
[347531213,1735905044249,-548.02,8.986e-05,2]
[347531214,1735905044259,-500.0,8.986e-05,2]
[347531215,1735905044269,-500.0,8.986e-05,2]
[347531216,1735905044506,-500.0,8.986e-05,2]
[347531217,1735905044515,-961.41,8.986e-05,2]
[347531218,1735905044525,-500.0,8.986e-05,2]
[347531219,1735905044535,-809.16,8.986e-05,2]
[347531220,1735905044544,-1136.56,8.986e-05,2]
[347531221,1735905044554,-500.0,8.986e-05,2]
[347531222,1735905044563,-500.0,8.986e-05,2]
[347531223,1735905044573,-500.0,8.986e-05,2]
[347531224,1735905044584,-898.07,8.986e-05,2]
[347531225,1735905044593,-606.66,8.986e-05,2]
[347531226,1735905044602,-500.0,8.986e-05,2]
[347531227,1735905044612,-500.0,8.986e-05,2]
[347531228,1735905044622,-1141.11,8.986e-05,2]
[347531229,1735905044631,-794.22,8.986e-05,2]
[347531230,1735905044641,-511.36,8.986e-05,2]
[347531231,1735905044651,-743.25,8.986e-05,2]
[347531232,1735905044661,-500.0,8.986e-05,2]
[347531233,1735905044671,-536.15,8.986e-05,2]
[347531234,1735905044681,-3174.83,8.986e-05,2]
[347531235,1735905044691,-500.0,8.986e-05,2]
[347531236,1735905044700,-500.0,8.986e-05,2]
[347531237,1735905044710,-500.0,8.986e-05,2]
[347531238,1735905044719,-1136.09,8.986e-05,2]
[347531239,1735905044729,-1014.14,8.986e-05,2]
[347531240,1735905044739,-500.0,8.986e-05,2]
[347531241,1735905044748,-1535.48,8.986e-05,2]
[347531242,1735905044758,-500.0,8.986e-05,2]
[347531243,1735905044768,-1600.87,8.986e-05,2]
[347531244,1735905044779,-500.0,8.986e-05,2]
[347531245,1735905044789,-2296.25,8.986e-05,2]
[347531246,1735905044800,-1633.82,8.986e-05,2]
[347531247,1735905044811,-500.0,8.986e-05,2]
[347531248,1735905044821,-500.0,8.986e-05,2]
[347531249,1735905044831,-500.0,8.986e-05,2]
[347531250,1735905044840,-1890.84,8.986e-05,2]
[347531251,1735905044850,-500.0,8.986e-05,2]
[347531252,1735905044860,-309.39395885,8.986e-05,2]
[347531253,1735905045228,-500.0,8.985e-05,2]
[347531254,1735905045239,-190.60604115,8.986e-05,2]
[347531255,1735905045248,-790.71,8.986e-05,2]
[347531256,1735905045262,-3401.53,8.986e-05,2]
[347531257,1735905045271,-500.0,8.986e-05,2]
[347531258,1735905045281,-574.6,8.986e-05,2]
[347531259,1735905045290,-500.0,8.986e-05,2]
[347531260,1735905045299,-2651.47859713,8.986e-05,2]
[347531261,1735905045311,-72.56140287,8.986e-05,2]
[347531262,1735905045321,-1377.08,8.986e-05,2]
[347531263,1735905045331,-1201.48,8.986e-05,2]
[347531264,1735905045340,-687.51,8.986e-05,2]
[347531265,1735905045350,-1530.27,8.986e-05,2]
[347531266,1735905045360,-500.0,8.986e-05,2]
[347531267,1735905045370,-815.31,8.986e-05,2]
[347531268,1735905045379,-552.24,8.986e-05,2]
[347531269,1735905045389,-1062.24,8.986e-05,2]
[347531270,1735905045399,-2705.9,8.986e-05,2]
[347531271,1735905045409,-1089.02,8.986e-05,2]
[347531272,1735905045419,-500.0,8.986e-05,2]
[347531273,1735905045428,-900.41,8.986e-05,2]
[347531274,1735905045437,-500.0,8.986e-05,2]
[347531275,1735905045447,-500.0,8.986e-05,2]
[347531276,1735905045457,-512.87,8.986e-05,2]
[347531277,1735905045467,-500.0,8.986e-05,2]
[347531278,1735905045479,-809.39,8.986e-05,2]
[347531279,1735905045488,-500.0,8.986e-05,2]
[347531280,1735905045498,-500.0,8.986e-05,2]
[347531281,1735905045507,-500.0,8.986e-05,2]
[347531282,1735905045517,-500.0,8.986e-05,2]
[347531283,1735905045527,-500.0,8.986e-05,2]
[347531284,1735905045538,-1697.57,8.986e-05,2]
[347531285,1735905045547,-500.0,8.986e-05,2]
[347531286,1735905045557,-1406.86,8.986e-05,2]
[347531288,1735905045567,-500.0,8.986e-05,2]
[347531289,1735905045577,-217.20311293,8.986e-05,2]
[347531291,1735905045589,-1228.27688707,8.986e-05,2]
[347531292,1735905045598,-818.71,8.986e-05,2]
[347531294,1735905045613,-500.0,8.986e-05,2]
[347531296,1735905045623,-147.44254474,8.986e-05,2]
[347531302,1735905045662,-1460.43745526,8.986e-05,2]
[347531304,1735905045672,-746.95,8.986e-05,2]
[347531305,1735905045682,-500.0,8.986e-05,2]
[347531306,1735905045692,-848.07,8.986e-05,2]
[347531307,1735905045702,-500.0,8.986e-05,2]
[347531308,1735905045712,-2199.69,8.986e-05,2]
[347531309,1735905045722,-944.93,8.986e-05,2]
[347531310,1735905045733,-3264.07,8.986e-05,2]
[347531311,1735905045743,-1278.63,8.986e-05,2]
[347531312,1735905045753,-500.0,8.986e-05,2]
[347531313,1735905045763,-1536.3,8.986e-05,2]
[347531314,1735905045773,-500.0,8.986e-05,2]
[347531315,1735905045784,-1468.96,8.986e-05,2]
[347531316,1735905045794,-500.0,8.986e-05,2]
[347531317,1735905045804,-500.0,8.986e-05,2]
[347531318,1735905045814,-500.0,8.986e-05,2]
[347531319,1735905045824,-500.0,8.986e-05,2]
[347531320,1735905045834,-500.0,8.986e-05,2]
[347531321,1735905045844,-500.0,8.986e-05,2]
[347531322,1735905045854,-670.94,8.986e-05,2]
[347531323,1735905045864,-2530.56,8.986e-05,2]
[347531324,1735905045873,-858.59,8.986e-05,2]
[347531325,1735905045883,-500.0,8.986e-05,2]
[347531326,1735905045894,-1698.46,8.986e-05,2]
[347531327,1735905045904,-1194.68,8.986e-05,2]
[347531328,1735905045914,-500.0,8.986e-05,2]
[347531329,1735905045924,-500.0,8.986e-05,2]
[347531330,1735905045934,-500.0,8.986e-05,2]
[347531331,1735905045944,-500.0,8.986e-05,2]
[347531332,1735905045954,-500.0,8.986e-05,2]
[347531333,1735905045964,-560.77,8.986e-05,2]
[347531334,1735905045974,-652.66,8.986e-05,2]
[347531335,1735905045984,-502.24,8.986e-05,2]
[347531336,1735905045995,-4617.13,8.986e-05,2]
[347531337,1735905046005,-500.0,8.986e-05,2]
[347531338,1735905046015,-1145.7,8.986e-05,2]
[347531339,1735905046025,-598.97,8.986e-05,2]
[347531340,1735905046035,-500.0,8.986e-05,2]
[347531341,1735905046044,-812.62,8.986e-05,2]
[347531342,1735905046055,-3544.79,8.986e-05,2]
[347531343,1735905046065,-500.0,8.986e-05,2]
[347531344,1735905046074,-870.08,8.986e-05,2]
[347531345,1735905046084,-500.0,8.986e-05,2]
[347531346,1735905046094,-500.0,8.986e-05,2]
[347531347,1735905046104,-500.0,8.986e-05,2]
[347531348,1735905046114,-500.0,8.986e-05,2]
[347531349,1735905046123,-500.0,8.986e-05,2]
[347531350,1735905046133,-500.0,8.986e-05,2]
[347531351,1735905046143,-500.0,8.986e-05,2]
[347531352,1735905046152,-500.0,8.986e-05,2]
[347531353,1735905046162,-1204.78,8.986e-05,2]
[347531354,1735905046172,-5179.38,8.986e-05,2]
[347531355,1735905046181,-6451.39,8.986e-05,2]
[347531356,1735905046191,-500.0,8.986e-05,2]
[347531357,1735905046200,-659.1,8.986e-05,2]
[347531358,1735905046209,-500.0,8.986e-05,2]
[347531359,1735905046219,-500.0,8.986e-05,2]
[347531360,1735905046229,-500.0,8.987e-05,2]
[347531361,1735905046241,-500.0,8.987e-05,2]
[347531362,1735905046251,-585.62,8.987e-05,2]
[347531363,1735905046261,-500.0,8.987e-05,2]
[347531364,1735905046270,-500.0,8.987e-05,2]
[347531365,1735905046280,-500.0,8.987e-05,2]
[347531366,1735905046290,-500.0,8.987e-05,2]
[347531368,1735905046299,-500.0,8.987e-05,2]
[347531370,1735905046309,-500.0,8.987e-05,2]
[347531371,1735905046319,-548.18,8.987e-05,2]
[347531372,1735905046328,-500.0,8.987e-05,2]
[347531373,1735905046338,-500.0,8.987e-05,2]
[347531374,1735905046347,-589.2,8.987e-05,2]
[347531375,1735905046357,-500.0,8.987e-05,2]
[347531376,1735905046367,-306.04241996,8.987e-05,2]
[347531377,1735905046376,-599.08,8.987e-05,2]
[347531378,1735905046386,-540.37,8.987e-05,2]
[347531379,1735905046395,-500.0,8.987e-05,2]
[347531380,1735905046406,-500.0,8.987e-05,2]
[347531381,1735905046415,-500.0,8.987e-05,2]
[347531382,1735905046425,-500.0,8.987e-05,2]
[347531383,1735905046434,-500.0,8.987e-05,2]
[347531384,1735905046443,-500.0,8.987e-05,2]
[347531385,1735905046453,-667.35,8.987e-05,2]
[347531386,1735905046462,-500.0,8.987e-05,2]
[347531387,1735905046472,-659.32,8.987e-05,2]
[347531388,1735905046483,-500.0,8.987e-05,2]
[347531389,1735905046492,-500.0,8.987e-05,2]
[347531390,1735905046502,-500.0,8.987e-05,2]
[347531391,1735905046514,-500.0,8.987e-05,2]
[347531392,1735905046524,-514.51,8.987e-05,2]
[347531393,1735905046534,-500.0,8.987e-05,2]
[347531394,1735905046543,-500.0,8.987e-05,2]
[347531395,1735905046553,-745.52,8.987e-05,2]
[347531396,1735905046562,-500.0,8.987e-05,2]
[347531397,1735905046572,-662.37,8.987e-05,2]
[347531398,1735905046582,-500.0,8.987e-05,2]
[347531399,1735905046592,-500.0,8.987e-05,2]
[347531400,1735905046602,-500.0,8.987e-05,2]
[347531401,1735905046611,-500.0,8.987e-05,2]
[347531402,1735905046621,-500.0,8.987e-05,2]
[347531403,1735905046630,-500.0,8.987e-05,2]
[347531404,1735905046639,-500.0,8.987e-05,2]
[347531405,1735905046649,-500.0,8.987e-05,2]
[347531406,1735905046658,-599.99,8.987e-05,2]
[347531407,1735905046668,-508.14,8.987e-05,2]
[347531408,1735905046678,-657.61,8.987e-05,2]
[347531409,1735905046687,-500.0,8.987e-05,2]
[347531410,1735905046698,-500.0,8.987e-05,2]
[347531411,1735905046708,-500.0,8.987e-05,2]
[347531412,1735905046717,-500.0,8.987e-05,2]
[347531413,1735905046727,-500.0,8.987e-05,2]
[347531414,1735905046738,-540.74,8.987e-05,2]
[347531415,1735905046747,-500.0,8.987e-05,2]
[347531416,1735905046758,-500.0,8.987e-05,2]
[347531417,1735905046767,-500.0,8.987e-05,2]
[347531418,1735905046776,-500.0,8.987e-05,2]
[347531419,1735905046785,-538.52,8.987e-05,2]
[347531420,1735905046795,-598.48,8.987e-05,2]
[347531421,1735905046804,-500.0,8.987e-05,2]
[347531422,1735905046813,-544.53,8.987e-05,2]
[347531423,1735905046823,-932.72,8.987e-05,2]
[347531424,1735905046935,-500.0,8.987e-05,2]
[347531425,1735905046944,-500.0,8.987e-05,2]
[347531426,1735905046953,-625.8,8.987e-05,2]
[347531427,1735905046962,-500.0,8.987e-05,2]
[347531428,1735905046971,-500.0,8.987e-05,2]
[347531429,1735905046980,-724.34,8.987e-05,2]
[347531430,1735905046990,-500.0,8.987e-05,2]
[347531431,1735905046999,-500.0,8.987e-05,2]
[347531432,1735905047008,-500.0,8.987e-05,2]
[347531433,1735905047017,-500.0,8.987e-05,2]
[347531434,1735905047026,-150.0,8.987e-05,2]
[347531435,1735905047036,-500.0,8.987e-05,2]
[347531436,1735905047045,-656.31,8.987e-05,2]
[347531437,1735905047055,-500.0,8.987e-05,2]
[347531438,1735905047064,-603.3,8.987e-05,2]
[347531439,1735905047073,-612.51,8.987e-05,2]
[347531440,1735905047082,-500.0,8.987e-05,2]
[347531441,1735905047091,-371.89187931,8.987e-05,2]
[347531442,1735905047100,-500.0,8.987e-05,2]
[347531443,1735905047109,-1072.45,8.987e-05,2]
[347531444,1735905047118,-500.0,8.987e-05,2]
[347531445,1735905047127,-500.0,8.987e-05,2]
[347531446,1735905047136,-500.0,8.987e-05,2]
[347531447,1735905047146,-500.0,8.987e-05,2]
[347531448,1735905047158,-500.0,8.987e-05,2]